fUST/lending_fUST_20251108
["ID","MTS","AMOUNT","RATE_DAILY","PERIOD"]
[393367878,1762535186629,5000.0,0.0002023,2]
[393367879,1762535187486,-45.60341317,0.0002053,2]
[393367880,1762535187518,-300.0,0.0002053,2]
[393367881,1762535187545,-36.43963131,0.00020531,2]
[393367882,1762535191426,-479.9248394,0.00020531,2]
[393367883,1762535194634,-162.25956193,0.00020531,2]
[393367884,1762535196137,-220.11599029,0.00020531,2]
[393367885,1762535198321,-288.4700298,0.00020531,2]
[393367886,1762535200950,-151.57209494,0.00020531,2]
[393367887,1762535209036,5000.0,0.0002023,2]
[393367888,1762535210144,-183.21805543,0.00020531,2]
[393367889,1762535214325,-314.83129476,0.00020531,2]
[393367890,1762535217052,-185.04586628,0.00020531,2]
[393367895,1762535223128,-188.03514188,0.0002053,2]
[393367896,1762535224718,-111.96485812,0.0002053,2]
[393367897,1762535224740,-116.65615845,0.00020531,2]
[393367898,1762535229311,-340.54107126,0.00020531,2]
[393367899,1762535231284,-169.56028027,0.00020531,2]
[393367900,1762535233848,5000.0,0.0002023,2]
[393367901,1762535235213,-330.68380564,0.00020531,2]
[393367902,1762535238041,-333.66712899,0.00020531,2]
[393367903,1762535240267,-186.33158586,0.00020531,2]
[393367904,1762535241739,-260.34015649,0.00020531,2]
[393367905,1762535246710,-202.61440663,0.00020531,2]
[393367906,1762535248861,-380.94423162,0.00020531,2]
[393367907,1762535254172,-308.83400442,0.00020531,2]
[393367908,1762535256847,-171.48244664,0.00020531,2]
[393367909,1762535257330,5000.0,0.0002023,2]
[393367910,1762535261282,-155.41481188,0.00020531,2]
[393367911,1762535277587,-163.80336321,0.0002053,2]
[393367912,1762535279665,-300.0,0.0002053,2]
[393367913,1762535280315,5000.0,0.0002023,2]
[393367914,1762535282493,-180.91238645,0.0002053,2]
[393367915,1762535284543,150.0,0.0002023,2]
[393367916,1762535285779,-217.4862081,0.0002053,2]
[393367917,1762535289011,-170.21542156,0.0002053,2]
[393367918,1762535290504,-162.21421607,0.0002053,2]
[393367919,1762535293810,-5.36840461,0.0002053,2]
[393367920,1762535293833,-233.38071098,0.0002053,2]
[393367921,1762535296502,-66.61928902,0.0002053,2]
[393367922,1762535296523,-261.5197632,0.00020531,2]
[393367923,1762535300509,-345.38455942,0.00020531,2]
[393367924,1762535302515,-300.58959537,0.00020531,2]
[393367925,1762535304177,5000.0,0.0002023,2]
[393367926,1762535321883,-196.28083808,0.00020531,2]
[393367927,1762535324587,-391.67557583,0.00020531,2]
[393367928,1762535327110,-162.58174492,0.00020531,2]
[393367929,1762535327157,3002.40445094,0.0002023,2]
[393367930,1762535329350,-286.22295196,0.0002023,2]
[393367931,1762535332736,-170.74956027,0.0002023,2]
[393367932,1762535334894,-164.84330196,0.0002023,2]
[393367933,1762535351907,-245.51880397,0.0002023,2]
[393367934,1762535354002,-471.12601976,0.0002023,2]
[393367935,1762535355570,-232.24266194,0.0002023,2]
[393367936,1762535358214,-212.724126,0.0002023,2]
[393367937,1762535359764,-174.09629505,0.0002023,2]
[393367938,1762535363173,-40.07182815,0.0002023,2]
[393367939,1762535363196,-256.02365009,0.00020531,2]
[393367940,1762535365790,-325.90370495,0.00020531,2]
[393367941,1762535381893,-159.24989287,0.00020326,2]
[393367942,1762535386230,-200.31215905,0.00020326,2]
[393367943,1762535389697,-399.3756819,0.00020326,2]
[393367944,1762535392423,-280.81856864,0.00020326,2]
[393367945,1762535394591,-236.50359093,0.00020326,2]
[393367947,1762535400328,-374.8536954,0.00020326,2]
[393367948,1762535401844,-161.74352294,0.00020326,2]
[393367949,1762535404382,-182.5760492,0.00020326,2]
[393367950,1762535406527,-446.08062209,0.00020326,2]
[393367951,1762535408130,-300.0,0.00020326,2]
[393367952,1762535410157,-190.13755335,0.00020326,2]
[393367953,1762535414779,-275.60228214,0.00020326,2]
[393367954,1762535416224,-236.12099722,0.00020326,2]
[393367955,1762535419667,-294.55232367,0.00020326,2]
[393367956,1762535422260,-225.44425756,0.00020326,2]
[393367957,1762535425005,-231.70067179,0.00020326,2]
[393368186,1762535437970,-804.92813125,0.00020326,2]
[393368188,1762535437980,-612.09346749,0.00020326,2]
[393368194,1762535438026,-380.90653251,0.00020326,2]
[393368196,1762535438038,-3523.4909427,0.00020428,2]
[393368198,1762535438050,-1200.0,0.00020529,2]
[393368201,1762535438061,-300.0,0.0002053,2]
[393368203,1762535438072,-300.0,0.0002053,2]
[393368205,1762535438086,-300.0,0.0002053,2]
[393368207,1762535438097,-10039.46281149,0.00020531,2]
[393368209,1762535438108,-222.23001321,0.00020855,2]
[393368211,1762535438120,-287.722,0.00021214,2]
[393368213,1762535438132,-182.89218737,0.00021214,2]
[393368215,1762535438144,-500.0,0.00021496,2]
[393368218,1762535438156,-3331.74740444,0.00021497,2]
[393368220,1762535438168,-153.51646446,0.00021547,2]
[393368222,1762535438180,-150.1,0.000216,2]
[393368224,1762535438192,-1108.82,0.00021635,3]
[393368226,1762535438202,-4435.29,0.00021636,3]
[393368228,1762535438217,-171.06,0.00021636,10]
[393368230,1762535438227,-2217.65,0.00021636,3]
[393368232,1762535438237,-160.95746311,0.00021645,2]
[393368234,1762535438247,-186.38834476,0.00021645,2]
[393368237,1762535438264,-313.61165524,0.00021645,2]
[393368239,1762535438275,-500.0,0.00021645,2]
[393368241,1762535438287,-500.0,0.00021645,2]
[393368243,1762535438300,-500.0,0.00021645,2]
[393368245,1762535438312,-2695.61260174,0.00021645,2]
[393368247,1762535438323,-500.0,0.00021645,2]
[393368249,1762535438335,-500.0,0.00021645,2]
[393368251,1762535438345,-500.0,0.00021645,2]
[393368253,1762535438356,-500.0,0.00021645,2]
[393368256,1762535438368,-500.0,0.00021645,2]
[393368258,1762535438379,-2695.61260174,0.00021645,2]
[393368260,1762535438391,-511.28612297,0.00021645,2]
[393368262,1762535438402,-500.0,0.00021645,2]
[393368264,1762535438416,-500.0,0.00021645,2]
[393368267,1762535438427,-500.0,0.00021645,2]
[393368269,1762535438439,-2695.61260174,0.00021645,2]
[393368271,1762535438450,-438.16439483,0.00021645,2]
[393368273,1762535438466,-500.0,0.00021645,2]
[393368275,1762535438477,-500.0,0.00021645,2]
[393368277,1762535438488,-247.35853876,0.00021645,2]
[393368279,1762535438500,-2695.61260174,0.00021645,2]
[393368282,1762535438512,-500.0,0.00021645,2]
[393368284,1762535438523,-500.0,0.00021645,2]
[393368286,1762535438534,-500.0,0.00021645,2]
[393368288,1762535438548,-2695.61260174,0.00021645,2]
[393368290,1762535438559,-500.0,0.00021645,2]
[393368292,1762535438570,-500.0,0.00021645,2]
[393368294,1762535438581,-500.0,0.00021645,2]
[393368296,1762535438592,-2695.61260174,0.00021645,2]
[393368298,1762535438604,-500.0,0.00021645,2]
[393368300,1762535438616,-500.0,0.00021645,2]
[393368302,1762535438628,-500.0,0.00021645,2]
[393368304,1762535438639,-2695.61260174,0.00021645,2]
[393368307,1762535438650,-500.0,0.00021645,2]
[393368309,1762535438662,-500.0,0.00021645,2]
[393368311,1762535438673,-2695.61260174,0.00021645,2]
[393368313,1762535438684,-500.0,0.00021645,2]
[393368314,1762535438696,-350.0,0.00021645,2]
[393368317,1762535438711,-2695.61260174,0.00021645,2]
[393368319,1762535438722,-500.0,0.00021645,2]
[393368321,1762535438733,-2695.61260174,0.00021645,2]
[393368323,1762535438744,-500.0,0.00021645,2]
[393368325,1762535438756,-616.93899557,0.00021645,2]
[393368327,1762535438767,-500.0,0.00021645,2]
[393368329,1762535438778,-2695.61260174,0.00021645,2]
[393368331,1762535438790,-500.0,0.00021645,2]
[393368334,1762535438802,-2695.61260174,0.00021645,2]
[393368336,1762535438814,-500.0,0.00021645,2]
[393368338,1762535438826,-500.0,0.00021645,2]
[393368340,1762535438838,-2695.61260174,0.00021645,2]
[393368342,1762535438850,-2695.61260174,0.00021645,2]
[393368356,1762535438988,-500.0,0.00021645,2]
[393368359,1762535439005,-2695.61260174,0.00021645,2]
[393368361,1762535439015,-2695.61260174,0.00021645,2]
[393368363,1762535439025,-500.0,0.00021645,2]
[393368365,1762535439035,-2695.61260174,0.00021645,2]
[393368367,1762535439044,-2695.61260174,0.00021645,2]
[393368369,1762535439054,-500.0,0.00021645,2]
[393368371,1762535439064,-2695.61260174,0.00021645,2]
[393368373,1762535439074,-2695.61260174,0.00021645,2]
[393368374,1762535439084,-2695.61260174,0.00021645,2]
[393368376,1762535439093,-2695.61260174,0.00021645,2]
[393368378,1762535439103,-2695.61260174,0.00021645,2]
[393368380,1762535439113,-2695.61260174,0.00021645,2]
[393368382,1762535439123,-2695.61260174,0.00021645,2]
[393368384,1762535439133,-2695.61260174,0.00021645,2]
[393368386,1762535439143,-2695.61260174,0.00021645,2]
[393368388,1762535439153,-2695.61260174,0.00021645,2]
[393368390,1762535439163,-2695.61260174,0.00021645,2]
[393368392,1762535439173,-2695.61260174,0.00021645,2]
[393368394,1762535439183,-2695.61260174,0.00021645,2]
[393368396,1762535439193,-2695.61260174,0.00021645,2]
[393368398,1762535439203,-2695.61260174,0.00021645,2]
[393368399,1762535439218,-2695.61260174,0.00021645,2]
[393368401,1762535439229,-2695.61260174,0.00021645,2]
[393368404,1762535439240,-2695.61260174,0.00021645,2]
[393368405,1762535439251,-2695.61260174,0.00021645,2]
[393368407,1762535439262,-2695.61260174,0.00021645,2]
[393368409,1762535439273,-2695.61260174,0.00021645,2]
[393368411,1762535439284,-2695.61260174,0.00021645,2]
[393368413,1762535439294,-2695.61260174,0.00021645,2]
[393368415,1762535439304,-2695.61260174,0.00021645,2]
[393368417,1762535439315,-2695.61260174,0.00021645,2]
[393368419,1762535439325,-2695.61260174,0.00021645,2]
[393368421,1762535439335,-2695.61260174,0.00021645,2]
[393368423,1762535439344,-2695.61260174,0.00021645,2]
[393368425,1762535439354,-2695.61260174,0.00021645,2]
[393368427,1762535439365,-2695.61260174,0.00021645,2]
[393368429,1762535439375,-2695.61260174,0.00021645,2]
[393368431,1762535439385,-2695.61260174,0.00021645,2]
[393368433,1762535439396,-2695.61260174,0.00021645,2]
[393368434,1762535439406,-2695.61260174,0.00021645,2]
[393368436,1762535439419,-2695.61260174,0.00021645,2]
[393368438,1762535439429,-2695.61260174,0.00021645,2]
[393368440,1762535439439,-2695.61260174,0.00021645,2]
[393368442,1762535439448,-2695.61260174,0.00021645,2]
[393368444,1762535439461,-2695.61260174,0.00021645,2]
[393368446,1762535439473,-2695.61260174,0.00021645,2]
[393368448,1762535439483,-2695.61260174,0.00021645,2]
[393368450,1762535439493,-2695.61260174,0.00021645,2]
[393368452,1762535439503,-50000.0,0.00021646,2]
[393368454,1762535439513,-500.0,0.00021647,2]
[393368456,1762535439523,-500.0,0.00021647,2]
[393368458,1762535439533,-500.0,0.00021647,2]
[393368460,1762535439543,-500.0,0.00021647,2]
[393368462,1762535439553,-174.21505831,0.00021647,2]
[393368464,1762535439563,-500.0,0.00021648,2]
[393368466,1762535439573,-500.0,0.00021649,2]
[393368468,1762535439582,-29016.100238,0.00021649,2]
[393368470,1762535439591,-575.4697875,0.00021673,2]
[393368472,1762535439603,-464.602958,0.00021673,2]
[393368475,1762535439615,-500.0,0.00021673,2]
[393368477,1762535439625,-621.34103627,0.00021673,2]
[393368479,1762535439634,-500.0,0.00021673,2]
[393368481,1762535439644,-500.0,0.00021673,2]
[393368483,1762535439655,-502.27675532,0.00021673,2]
[393368485,1762535439665,-500.0,0.00021673,2]
[393368487,1762535439675,-500.0,0.00021673,2]
[393368488,1762535439685,-500.0,0.00021673,2]
[393368490,1762535439695,-500.0,0.00021673,2]
[393368493,1762535439710,-500.0,0.00021673,2]
[393368495,1762535439724,-500.0,0.00021673,2]
[393368498,1762535439734,-501.37146483,0.00021673,2]
[393368500,1762535439744,-500.51404501,0.00021673,2]
[393368503,1762535439754,-1707.6557411,0.00021691,2]
[393368506,1762535439764,-388.06755013,0.0002173,2]
[393368509,1762535439774,-500.0,0.00021815,2]
[393368512,1762535439784,-150.1,0.000219,2]
[393368515,1762535439794,-194.37,0.000221,7]
[393368518,1762535439804,-150.1,0.000221,2]
[393368521,1762535439814,-1599.0,0.000222,2]
[393368524,1762535439824,-483.51881006,0.00022221,2]
[393368527,1762535439833,-500.0,0.00022221,2]
[393368530,1762535439843,-500.0,0.00022221,2]
[393368533,1762535439852,-372.43493773,0.00022221,2]
[393368535,1762535439861,-507.36626914,0.00022221,2]
[393368537,1762535439871,-150.1,0.000223,2]
[393368539,1762535439880,-1680.0,0.00022343,2]
[393368541,1762535439890,-420.0,0.00022343,2]
[393368542,1762535439899,-215.0,0.00022343,2]
[393368543,1762535439909,-151.0,0.000224,10]
[393368544,1762535439918,-1195.0,0.00022448,2]
[393368545,1762535439928,-151.0,0.000225,6]
[393368547,1762535439938,-150.1,0.000225,2]
[393368549,1762535439949,-1595.0,0.00022513,2]
[393368551,1762535439964,-150.0,0.00022561,15]
[393368553,1762535439973,-151.0,0.000226,9]
[393368555,1762535439984,-1595.0,0.000227,2]
[393368557,1762535439994,-150.1,0.000227,2]
[393368560,1762535440004,-11225.12206554,0.0002275,2]
[393368563,1762535440016,-117358.7813793,0.00022759,2]
[393368566,1762535440030,-277965.0124782,0.00022759,2]
[393368568,1762535440042,-43733.56541605,0.00022759,2]
[393368624,1762535440986,-3e-08,0.00022759,2]
[393368686,1762535446604,-3837.15594234,0.00022759,2]
[393368687,1762535446657,-1200.0,0.00022759,2]
[393368688,1762535446668,-10772.32924964,0.00022759,2]
[393368690,1762535447085,-20128.41806345,0.00022759,2]
[393368702,1762535565418,-215.6914277,0.00020552,2]
[393368703,1762535565440,-40.29606712,0.00020552,2]
[393368704,1762535567174,-252.10543403,0.00020552,2]
[393368705,1762535570473,-423.30145962,0.00020552,2]
[393368706,1762535576050,-287.72258982,0.00020552,2]
[393368707,1762535577784,-158.86447604,0.00020552,2]
[393368710,1762535595426,-223.97224377,0.00020552,2]
[393368729,1762535641038,-11.4854349,0.00020552,2]
[393368730,1762535641061,-353.3030437,0.00020552,2]
[393368731,1762535643860,-396.68672198,0.00020552,2]
[393368732,1762535645173,-210.09170906,0.00020552,2]
[393368733,1762535648577,-211.25012539,0.00020552,2]
[393368734,1762535651157,-153.33194213,0.00020552,2]
[393368735,1762535652775,-156.23987852,0.00020552,2]
[393368736,1762535655430,-172.41846922,0.00020347,2]
[393368737,1762535659274,-157.37654015,0.00020347,2]
[393368738,1762535660725,-410.95013948,0.00020347,2]
[393368739,1762535662228,-177.96086052,0.00020347,2]
[393368740,1762535663827,-243.71007522,0.00020347,2]
[393368741,1762535665442,-155.79163807,0.00020347,2]
[393368742,1762535667666,-294.18324461,0.00020347,2]
[393368743,1762535669218,-331.70542319,0.00020347,2]
[393368746,1762535686025,-309.23630693,0.00020347,2]
[393368747,1762535688471,-223.30027415,0.00020347,2]
[393368749,1762535691105,-175.15076369,0.00020347,2]
[393368751,1762535692707,-455.42158726,0.00020347,2]
[393368753,1762535694321,-326.41691859,0.00020347,2]
[393368754,1762535695937,-376.80671459,0.00020347,2]
[393368755,1762535698058,-180.60251544,0.00020347,2]
[393368762,1762535715282,-163.65664654,0.00020347,2]
[393368768,1762536006037,298.100223,0.00013699,2]
[393368770,1762536068805,500.0,0.00036967,60]
[393368771,1762536069051,500.0,0.00036967,60]
[393368772,1762536069299,500.0,0.00036967,60]
[393368773,1762536069576,500.0,0.00036967,60]
[393368774,1762536069891,500.0,0.00036967,60]
[393368775,1762536070157,500.0,0.00036967,60]
[393368776,1762536070449,500.0,0.00036967,60]
[393368777,1762536070735,500.0,0.00036967,60]
[393368778,1762536071000,500.0,0.00036967,60]
[393368779,1762536071282,500.0,0.00036967,60]
[393368780,1762536071691,500.0,0.00036967,60]
[393368781,1762536071939,500.0,0.00036967,60]
[393368782,1762536072217,500.0,0.00036967,60]
[393368783,1762536072451,500.0,0.00036967,60]
[393368784,1762536072695,500.0,0.00036967,60]
[393368785,1762536072944,500.0,0.00036967,120]
[393368786,1762536073194,500.0,0.00036967,120]
[393368787,1762536073438,500.0,0.00036967,120]
[393368788,1762536073726,500.0,0.00036967,120]
[393368789,1762536073984,500.0,0.00036967,120]
[393368790,1762536074251,500.0,0.00036967,120]
[393368791,1762536074523,543.70093006,0.00036967,120]
[393368792,1762536119765,2009.34219171,0.00036967,20]
[393368868,1762536488224,421.97320896,0.00010618,2]
[393368869,1762536490178,9264.61199638,0.000125,2]
[393368881,1762536520931,2377.52693462,0.0001,2]
[393368963,1762536632439,-421.00736221,0.00018503,3]
[393368965,1762536632449,-78.99263779,0.00018603,2]
[393369122,1762536638207,-617.6599536,0.00018417,2]
[393369125,1762536638222,-4382.3400464,0.00018417,2]
[393369127,1762536638233,-1121.00736221,0.00018603,2]
[393369129,1762536638243,-300.0,0.00018603,2]
[393369131,1762536638253,-5000.0,0.00018604,2]
[393369133,1762536638263,-902.0,0.00018604,2]
[393369136,1762536638272,-150.0,0.00018791,2]
[393369139,1762536638282,-160.0,0.00018865,2]
[393369140,1762536638292,-234.75073504,0.00019058,2]
[393369142,1762536638302,-287.13850829,0.00019231,2]
[393369144,1762536638311,-275.0,0.0001924,2]
[393369146,1762536638320,-300.0,0.0001924,2]
[393369148,1762536638330,-300.0,0.0001924,2]
[393369150,1762536638339,-1200.0,0.00019241,2]
[393369152,1762536638349,-23560.41008377,0.00019242,2]
[393369154,1762536638361,-26439.58991623,0.00019242,2]
[393369156,1762536638371,-500.0,0.00019242,2]
[393369159,1762536638380,-500.0,0.00019242,2]
[393369161,1762536638390,-500.0,0.00019242,2]
[393369162,1762536638399,-300.0,0.00019243,2]
[393369164,1762536638409,-300.0,0.00019243,2]
[393369166,1762536638421,-300.0,0.00019243,2]
[393369168,1762536638431,-300.0,0.00019243,2]
[393369170,1762536638441,-300.0,0.00019243,2]
[393369172,1762536638450,-300.0,0.00019243,2]
[393369174,1762536638460,-300.0,0.00019243,2]
[393369176,1762536638469,-300.0,0.00019243,2]
[393369178,1762536638480,-300.0,0.00019243,2]
[393369180,1762536638489,-300.0,0.00019243,2]
[393369182,1762536638498,-300.0,0.00019243,2]
[393369184,1762536638507,-300.0,0.00019243,2]
[393369186,1762536638517,-300.0,0.00019243,2]
[393369188,1762536638525,-300.0,0.00019243,2]
[393369190,1762536638535,-300.0,0.00019243,2]
[393369192,1762536638544,-500.0,0.00019273,2]
[393369194,1762536638554,-527.36162443,0.0001999,2]
[393369196,1762536638564,-240.0,0.0002,2]
[393369198,1762536638574,-768.3680985,0.00020146,2]
[393369200,1762536638583,-298.100223,0.00020187,2]
[393369202,1762536638592,-303.0,0.00020285,2]
[393369204,1762536638602,-7670.99700472,0.00020552,2]
[393369206,1762536638611,-288.70648676,0.00020791,2]
[393369208,1762536638621,-218.99699237,0.00020899,2]
[393369210,1762536638631,-265.07852295,0.00020913,2]
[393369212,1762536638641,-600.0,0.00020962,2]
[393369214,1762536638651,-420.0,0.00020966,2]
[393369215,1762536638661,-420.0,0.00020966,2]
[393369217,1762536638672,-500.0,0.00020968,2]
[393369219,1762536638683,-910.0,0.00020968,2]
[393369221,1762536638692,-500.0,0.00020972,2]
[393369223,1762536638703,-500.0,0.00020972,2]
[393369225,1762536638712,-500.0,0.00020972,2]
[393369227,1762536638722,-7517.91285982,0.00020972,2]
[393369229,1762536638731,-500.0,0.00020972,2]
[393369231,1762536638741,-550.23403492,0.00020972,2]
[393369233,1762536638751,-7517.91285982,0.00020972,2]
[393369235,1762536638761,-500.0,0.00020972,2]
[393369237,1762536638771,-500.0,0.00020972,2]
[393369239,1762536638780,-500.0,0.00020972,2]
[393369241,1762536638790,-7517.91285982,0.00020972,2]
[393369243,1762536638800,-500.0,0.00020972,2]
[393369245,1762536638810,-7517.91285982,0.00020972,2]
[393369246,1762536638820,-500.0,0.00020972,2]
[393369248,1762536638829,-500.0,0.00020972,2]
[393369250,1762536638840,-7517.91285982,0.00020972,2]
[393369252,1762536638850,-500.0,0.00020972,2]
[393369254,1762536638860,-7517.91285982,0.00020972,2]
[393369257,1762536638871,-500.0,0.00020972,2]
[393369258,1762536638880,-431.26611666,0.00020972,2]
[393369260,1762536638890,-500.0,0.00020972,2]
[393369262,1762536638899,-7517.91285982,0.00020972,2]
[393369264,1762536638909,-7517.91285982,0.00020972,2]
[393369266,1762536638921,-500.0,0.00020972,2]
[393369268,1762536638931,-379.27457942,0.00020972,2]
[393369270,1762536638941,-7517.91285982,0.00020972,2]
[393369272,1762536638951,-500.0,0.00020972,2]
[393369274,1762536638960,-7517.91285982,0.00020972,2]
[393369276,1762536638971,-500.0,0.00020972,2]
[393369278,1762536638980,-500.0,0.00020972,2]
[393369281,1762536638995,-7517.91285982,0.00020972,2]
[393369282,1762536639005,-500.0,0.00020972,2]
[393369284,1762536639015,-6908.76963886,0.00020972,2]
[393369287,1762536639027,-609.14322096,0.00020972,2]
[393369289,1762536639038,-500.0,0.00020972,2]
[393369291,1762536639047,-2034.02248879,0.00020972,2]
[393369293,1762536639059,-5483.89037103,0.00020972,2]
[393369295,1762536639069,-500.0,0.00020972,2]
[393369296,1762536639079,-7517.91285982,0.00020972,2]
[393369298,1762536639088,-7517.91285982,0.00020972,2]
[393369300,1762536639098,-500.0,0.00020972,2]
[393369303,1762536639108,-7517.91285982,0.00020972,2]
[393369304,1762536639118,-7517.91285982,0.00020972,2]
[393369306,1762536639127,-500.0,0.00020972,2]
[393369309,1762536639138,-7517.91285982,0.00020972,2]
[393369311,1762536639148,-7517.91285982,0.00020972,2]
[393369313,1762536639159,-7517.91285982,0.00020972,2]
[393369315,1762536639171,-500.0,0.00020972,2]
[393369317,1762536639181,-7517.91285982,0.00020972,2]
[393369319,1762536639191,-6576.37871506,0.00020972,2]
[393369321,1762536639203,-941.53414476,0.00020972,2]
[393369323,1762536639212,-3269.53230165,0.00020972,2]
[393369325,1762536639224,-4248.38055817,0.00020972,2]
[393369327,1762536639233,-7517.91285982,0.00020972,2]
[393369329,1762536639242,-6458.01968517,0.00020972,2]
[393369441,1762536640320,-1059.89317465,0.00020972,2]
[393369443,1762536640330,-7168.20345344,0.00020972,2]
[393369445,1762536640341,-349.70940638,0.00020972,2]
[393369447,1762536640350,-1045.52088334,0.00020972,2]
[393369479,1762536640631,-3e-08,0.00020972,2]
[393369735,1762536833891,-500.0,0.00019242,2]
[393369736,1762536833929,-500.0,0.00019242,2]
[393369737,1762536833965,-160.0,0.00019242,2]
[393369738,1762536834000,-500.0,0.000193,2]
[393369739,1762536834034,-1680.01,0.00020762,2]
[393369740,1762536834128,-2097.76444475,0.00020762,2]
[393369742,1762536836886,-1222.22555525,0.00020762,2]
[393369743,1762536836916,-300.0,0.0002087,2]
[393369744,1762536836943,-1200.0,0.00020871,2]
[393369745,1762536836970,-1426.82260718,0.00020872,2]
[393369746,1762536837030,-1701.91367514,0.00020872,2]
[393369750,1762536840003,-538.48293085,0.00020872,2]
[393369751,1762536840036,-2630.41,0.00020961,10]
[393369752,1762536840067,-761.7341383,0.00020961,10]
[393369753,1762536840121,-2138.7558617,0.00020961,10]
[393369754,1762536840148,-10000.01,0.00020962,2]
[393369755,1762536840208,-10000.01,0.00020962,2]
[393369756,1762536840336,-10000.01,0.00020962,2]
[393369757,1762536840451,-10000.01,0.00020962,2]
[393369759,1762536842773,-0.05,0.00020962,2]
[393369760,1762536842797,-9999.91,0.00020962,2]
[393369761,1762536842908,-785.42,0.00020962,3]
[393369762,1762536842935,-392.71,0.00020962,3]
[393369763,1762536842963,-702.03,0.00020962,3]
[393369764,1762536842990,-351.01,0.00020962,3]
[393369765,1762536843017,-175.51,0.00020962,3]
[393369766,1762536843049,-526.53,0.00020962,3]
[393369767,1762536843688,300.0,0.00020961,2]
[393369770,1762536848664,2552.13,0.00020961,10]
[393369771,1762536853578,829.81,0.00020961,3]
[393369772,1762536853703,451.65,0.00020962,2]
[393369773,1762536853727,4548.35,0.00020962,2]
[393369774,1762536858992,2126.78,0.00020961,10]
[393369775,1762536861599,5000.0,0.00020962,2]
[393369776,1762536864083,576.2,0.00020961,3]
[393369777,1762536864815,500.0,0.00019242,2]
[393369778,1762536865132,500.0,0.00019242,2]
[393369779,1762536869672,178.69344344,0.00020962,2]
[393369780,1762536869893,1118.33655656,0.00020961,10]
[393369781,1762536869915,653.98344344,0.00020961,10]
[393369782,1762536878146,5000.0,0.00020962,2]
[393369783,1762536880951,1476.93,0.0002096,10]
[393369784,1762536888936,-296.94381102,0.0002097,2]
[393369785,1762536888962,-614.22396037,0.0002097,2]
[393369786,1762536888990,-500.0,0.0002097,2]
[393369787,1762536889018,-502.38690557,0.0002097,2]
[393369788,1762536889144,-3827.10935392,0.0002097,2]
[393369789,1762536889254,-2345.79129216,0.0002097,2]
[393369790,1762536889281,-500.0,0.0002097,2]
[393369791,1762536889310,-500.0,0.0002097,2]
[393369792,1762536889338,-620.60312235,0.0002097,2]
[393369793,1762536889481,-3324.72244835,0.0002097,2]
[393369794,1762536889606,-3350.5651033,0.0002097,2]
[393369795,1762536889638,-500.0,0.0002097,2]
[393369796,1762536889668,-500.0,0.0002097,2]
[393369797,1762536889735,-3324.72244835,0.0002097,2]
[393369798,1762536889896,-3350.5651033,0.0002097,2]
[393369799,1762536890040,-500.0,0.0002097,2]
[393369800,1762536890079,-500.0,0.0002097,2]
[393369801,1762536890120,-3324.72244835,0.0002097,2]
[393369802,1762536890192,-3350.5651033,0.0002097,2]
[393369803,1762536890221,-500.0,0.0002097,2]
[393369804,1762536890249,-500.0,0.0002097,2]
[393369805,1762536890368,-3324.72244835,0.0002097,2]
[393369806,1762536890501,-2123.60224175,0.0002097,2]
[393369807,1762536891433,-1226.96286155,0.0002097,2]
[393369808,1762536891463,-500.0,0.0002097,2]
[393369809,1762536891494,-500.0,0.0002097,2]
[393369810,1762536891577,-5546.0842769,0.0002097,2]
[393369811,1762536891612,-1129.20327475,0.0002097,2]
[393369812,1762536891644,-516.72485569,0.0002097,2]
[393369813,1762536891673,-32.86618747,0.0002097,2]
[393369814,1762536891753,-3357.58863582,0.0002097,2]
[393369815,1762536891790,-3284.83272836,0.0002097,2]
[393369816,1762536891818,-500.0,0.0002097,2]
[393369817,1762536891828,-500.0,0.0002097,2]
[393369818,1762536891838,-500.0,0.0002097,2]